fUSD/lending_fUSD_20241225
["ID","MTS","AMOUNT","RATE_DAILY","PERIOD"]
[346573482,1735105832701,-4068.77,0.00011997,2]
[346573483,1735105832710,-6216.26,0.00011997,2]
[346573484,1735105832719,-4558.26,0.00011997,2]
[346573485,1735105832729,-2761.31,0.00011997,2]
[346573486,1735105832739,-960.47,0.00011997,2]
[346573487,1735105832748,-500.0,0.00011997,2]
[346573488,1735105832758,-1026.01,0.00011997,2]
[346573489,1735105832767,-655.97897882,0.00011997,2]
[346573490,1735105838337,-481.58082992,0.00011973,2]
[346573491,1735105838346,-21292.77102118,0.00011997,2]
[346573492,1735105838355,-2330.59,0.00011997,2]
[346573493,1735105838364,-483.0581489,0.00011997,2]
[346573494,1735105838375,-16.9418511,0.00011997,2]
[346573495,1735105838384,-1133.1011244,0.00011997,2]
[346573496,1735105838396,-2911.8488756,0.00011997,2]
[346573497,1735105838405,-2311.21,0.00011997,2]
[346573498,1735105838414,-500.0,0.00011998,2]
[346573499,1735105838423,-546.98,0.00011998,2]
[346573500,1735105838434,-500.0,0.00011998,2]
[346573501,1735105838443,-718.54,0.00011998,2]
[346573502,1735105838452,-607.15,0.00011998,2]
[346573503,1735105838462,-500.0,0.00011998,2]
[346573504,1735105838471,-1113.49,0.00011998,2]
[346573505,1735105838480,-500.0,0.00011998,2]
[346573506,1735105838490,-561.15,0.00011998,2]
[346573507,1735105838499,-500.0,0.00011998,2]
[346573508,1735105838508,-883.44,0.00011998,2]
[346573509,1735105838517,-500.0,0.00011998,2]
[346573510,1735105838526,-505.06121306,0.00011998,2]
[346573511,1735105838535,-500.0,0.00011998,2]
[346573512,1735105838544,-500.0,0.00011998,2]
[346573513,1735105838554,-500.0,0.00011998,2]
[346573514,1735105838563,-500.0,0.00011998,2]
[346573515,1735105838572,-500.0,0.00011998,2]
[346573516,1735105838581,-500.0,0.00011998,2]
[346573517,1735105838593,-828.13,0.00011998,2]
[346573518,1735105838603,-1701.16,0.00011998,2]
[346573519,1735105838612,-500.0,0.00011998,2]
[346573520,1735105838621,-500.0,0.00011998,2]
[346573521,1735105838631,-793.9,0.00011998,2]
[346573522,1735105838640,-856.12,0.00011998,2]
[346573524,1735105838650,-500.0,0.00011998,2]
[346573526,1735105838660,-500.0,0.00011998,2]
[346573528,1735105838669,-17225.14,0.00011998,2]
[346573530,1735105838679,-1014.08,0.00011998,2]
[346573532,1735105838688,-689.65,0.00011998,2]
[346573534,1735105838699,-3182.62,0.00011998,2]
[346573536,1735105838708,-500.0,0.00011998,2]
[346573538,1735105838719,-500.0,0.00011998,2]
[346573540,1735105838728,-832.3,0.00011998,2]
[346573542,1735105838737,-653.39,0.00011998,2]
[346573544,1735105838746,-572.93,0.00011998,2]
[346573546,1735105838755,-500.0,0.00011998,2]
[346573548,1735105838764,-500.0,0.00011998,2]
[346573549,1735105838774,-500.0,0.00011998,2]
[346573551,1735105838783,-576.68,0.00011998,2]
[346573552,1735105838792,-4806.82,0.00011998,2]
[346573553,1735105838802,-500.0,0.00011998,2]
[346573554,1735105838811,-500.0,0.00011998,2]
[346573555,1735105838821,-4065.57,0.00011998,2]
[346573556,1735105838830,-775.46,0.00011998,2]
[346573557,1735105838839,-500.0,0.00011998,2]
[346573558,1735105838849,-1966.83,0.00011998,2]
[346573559,1735105838858,-578.52,0.00011998,2]
[346573560,1735105838868,-500.0,0.00011998,2]
[346573561,1735105838877,-156.473705,0.00011998,2]
[346573562,1735105838886,-154.963034,0.00011998,2]
[346573563,1735105838895,-4221.19,0.00011998,2]
[346573564,1735105838904,-528.50549075,0.00011998,2]
[346573566,1735105840417,-1619.28450925,0.00011998,2]
[346573567,1735105840427,-2467.045544,0.00011998,2]
[346573568,1735105840439,-500.0,0.00011998,2]
[346573569,1735105840448,-500.0,0.00011998,2]
[346573570,1735105840457,-500.0,0.00011998,2]
[346573571,1735105840466,-2675.703254,0.00011998,2]
[346573572,1735105840475,-224.1532476,0.00011998,2]
[346573573,1735105840487,-275.8467524,0.00011998,2]
[346573574,1735105840496,-7571.91,0.00011998,2]
[346573575,1735105840506,-500.0,0.00011998,2]
[346573576,1735105840515,-500.0,0.00011998,2]
[346573577,1735105840524,-500.0,0.00011998,2]
[346573578,1735105840534,-500.0,0.00011998,2]
[346573579,1735105840543,-1121.12109758,0.00011998,2]
[346573580,1735105840555,-941.68,0.00011998,2]
[346573581,1735105840566,-500.0,0.00011998,2]
[346573582,1735105840631,-516.63020076,0.00011998,2]
[346573583,1735105840642,-499.37870166,0.00011998,2]
[346573584,1735105840652,-576.55,0.00011998,2]
[346573585,1735105840662,-500.0,0.00011998,2]
[346573586,1735105840671,-432.3915357,0.00011998,2]
[346573587,1735105840684,-67.6084643,0.00011998,2]
[346573588,1735105840693,-500.0,0.00011998,2]
[346573589,1735105840703,-6411.9915357,0.00011998,2]
[346573590,1735105840735,-181.9384643,0.00011998,2]
[346573591,1735105840744,-489.17279013,0.00011998,2]
[346573592,1735105840755,-10.82720987,0.00011998,2]
[346573593,1735105840764,-385.0959082,0.00011998,2]
[346573595,1735105841372,-355.72425126,0.00011998,2]
[346573598,1735105843534,-161.49597234,0.00011973,2]
[346573599,1735105843544,-500.0,0.00011997,2]
[346573600,1735105843553,-1403.71984054,0.00011998,2]
[346573601,1735105843563,-500.0,0.00011998,2]
[346573602,1735105843572,-6385.59,0.00011998,2]
[346573603,1735105843582,-493.75371712,0.00011998,2]
[346573604,1735105843623,-958.80105735,0.00011998,2]
[346573605,1735105843637,-2599.75522553,0.00011998,2]
[346573606,1735105843646,-9938.57308096,0.00011998,2]
[346573633,1735105932077,530.85,9.57e-05,2]
[346573639,1735106708280,160.0,0.00018,30]
[346573640,1735106708405,160.0,0.00018,30]
[346573641,1735106708707,160.0,0.00018,30]
[346573642,1735106709029,160.0,0.00018,30]
[346573643,1735106709487,160.0,0.00018,30]
[346573644,1735106712038,-3817.25561366,0.00013,15]
[346573645,1735106712098,-2000.0,0.00013123,17]
[346573646,1735106712121,-2000.0,0.00013123,17]
[346573647,1735106712144,-2000.0,0.00013123,17]
[346573648,1735106712166,-2000.0,0.00013123,17]
[346573649,1735106712189,-2000.0,0.00013123,17]
[346573650,1735106712211,-2000.0,0.00013123,17]
[346573651,1735106712232,-2000.0,0.00013123,17]
[346573652,1735106712253,-2000.0,0.00013123,17]
[346573653,1735106712275,-2000.0,0.00013123,17]
[346573654,1735106712296,-2000.0,0.00013123,17]
[346573655,1735106712458,-2000.0,0.0001411,25]
[346573656,1735106712479,-2000.0,0.0001411,25]
[346573657,1735106712501,-2000.0,0.0001411,25]
[346573658,1735106712523,-2000.0,0.0001411,25]
[346573659,1735106712548,-2000.0,0.0001411,25]
[346573660,1735106712569,-2000.0,0.0001411,25]
[346573661,1735106712590,-2000.0,0.0001411,25]
[346573662,1735106712611,-2000.0,0.0001411,25]
[346573663,1735106712632,-2000.0,0.0001411,25]
[346573664,1735106712654,-2000.0,0.0001411,25]
[346573672,1735106932608,504.3,8.354e-05,2]
[346573678,1735107031619,-500.0,0.00010242,2]
[346573679,1735107031648,-475.22000005,0.00010242,2]
[346573680,1735107031659,-24.77999995,0.00010242,2]
[346573681,1735107031668,-2000.0,0.00010272,2]
[346573682,1735107031678,-455.6,0.00010281,2]
[346573683,1735107031687,-250.0,0.00010341,2]
[346573684,1735107031696,-1269.62000165,0.00010341,2]
[346573685,1735107031708,-230.37999835,0.00010341,2]
[346573686,1735107031717,-355.82000165,0.00010344,2]
[346573687,1735107031753,-1666.95223526,0.00010344,2]
[346573688,1735107031780,-4002.55903155,0.00010344,2]
[346573689,1735107031887,-598.93662339,0.00010344,2]
[346573690,1735107031990,-1803.96075961,0.00010344,2]
[346573691,1735107032002,-982.98,0.00010344,2]
[346573692,1735107032026,-14488.79134854,0.00010344,2]
[346573693,1735107032035,-250.0,0.00010359,2]
[346573694,1735107032045,-298.48,0.00010371,2]
[346573695,1735107032054,-202.5,0.00010398,2]
[346573696,1735107032063,-200.81,0.00010398,2]
[346573697,1735107032072,-203.8,0.00010398,2]
[346573698,1735107032082,-287.37,0.00010398,2]
[346573699,1735107032090,-203.25,0.00010403,2]
[346573700,1735107032100,-200.65,0.00010403,2]
[346573701,1735107032110,-203.37,0.00010403,2]
[346573702,1735107032119,-4391.68,0.00010403,2]
[346573703,1735107032128,-250.0,0.00010428,2]
[346573704,1735107032138,-475.77,0.00010458,2]
[346573705,1735107032323,-202.43,0.00010458,2]
[346573706,1735107032332,-201.49,0.00010458,2]
[346573707,1735107032341,-200.21,0.00010458,2]
[346573708,1735107032351,-202.35,0.00010458,2]
[346573709,1735107032360,-200.0,0.00010488,2]
[346573710,1735107032369,-504.3,0.00010618,2]
[346573711,1735107032378,-203.33,0.00010636,2]
[346573712,1735107032387,-200.99,0.00010636,2]
[346573713,1735107032396,-200.71,0.00010636,2]
[346573714,1735107032406,-203.56,0.00010636,2]
[346573715,1735107032415,-202.83,0.00010637,2]
[346573716,1735107032424,-202.96,0.00010637,2]
[346573717,1735107032433,-201.39,0.00010637,2]
[346573718,1735107032443,-202.69,0.00010637,2]
[346573719,1735107032453,-203.71,0.00010637,2]
[346573720,1735107032462,-202.54,0.00010637,2]
[346573721,1735107032472,-203.16,0.00010637,2]
[346573722,1735107032481,-202.25,0.00010637,2]
[346573723,1735107032490,-201.79,0.00010637,2]
[346573724,1735107032499,-166.96,0.00010783,2]
[346573725,1735107032509,-5495.47,0.00010959,2]
[346573726,1735107032518,-150.0,0.00010959,2]
[346573727,1735107032527,-159.05,0.00011167,2]
[346573728,1735107032536,-202.56,0.00011169,2]
[346573729,1735107032546,-159.05,0.00011171,2]
[346573730,1735107032555,-159.05,0.00011175,2]
[346573731,1735107032564,-159.05,0.00011179,2]
[346573732,1735107032573,-159.05,0.00011183,2]
[346573733,1735107032582,-159.05,0.00011187,2]
[346573734,1735107032591,-159.05,0.00011191,2]
[346573735,1735107032600,-159.05,0.00011195,2]
[346573736,1735107032610,-159.05,0.00011199,2]
[346573737,1735107032619,-159.05,0.00011203,2]
[346573738,1735107032628,-159.05,0.00011207,2]
[346573739,1735107032638,-159.05,0.00011211,2]
[346573740,1735107032647,-159.05,0.00011215,2]
[346573741,1735107032656,-159.05,0.00011219,2]
[346573742,1735107032665,-159.05,0.00011223,2]
[346573743,1735107032674,-3626.49,0.0001123,2]
[346573744,1735107032683,-200.31,0.0001123,2]
[346573745,1735107032693,-200.5,0.00011292,2]
[346573746,1735107032702,-335.05,0.00011292,2]
[346573747,1735107032712,-11839.0,0.00011317,2]
[346573748,1735107032722,-436.35,0.00011478,2]
[346573749,1735107032731,-150.0,0.00011478,2]
[346573750,1735107032740,-150.0,0.00011478,2]
[346573751,1735107032750,-150.0,0.00011478,2]
[346573752,1735107032759,-2751.0,0.00011507,2]
[346573753,1735107032769,-1500.0,0.00011511,2]
[346573754,1735107032779,-1500.0,0.00011511,2]
[346573755,1735107032788,-1000.0,0.00011522,2]
[346573756,1735107032797,-455.6,0.00011566,2]
[346573757,1735107032806,-404.14745423,0.00011705,2]
[346573758,1735107032815,-202.63,0.00011759,2]
[346573759,1735107032825,-201.01,0.0001176,2]
[346573760,1735107032834,-203.43,0.0001176,2]
[346573761,1735107032843,-200.84,0.0001176,2]
[346573762,1735107032853,-200.74,0.0001176,2]
[346573763,1735107032862,-201.47,0.0001176,2]
[346573764,1735107032872,-201.29,0.0001176,2]
[346573765,1735107032881,-872.7,0.00011778,2]
[346573766,1735107032890,-151.28,0.00011778,2]
[346573767,1735107032899,-153.87,0.00011778,2]
[346573768,1735107032909,-300.0,0.00011778,2]
[346573769,1735107032918,-300.47,0.00011778,2]
[346573770,1735107032928,-302.24,0.00011778,2]
[346573771,1735107032938,-3000.0,0.0001188,2]
[346573772,1735107032947,-235.36198397,0.00011895,2]
[346573773,1735107032956,-5000.0,0.00011896,2]
[346573774,1735107032966,-5145.7889,0.00011898,2]
[346573775,1735107032975,-157.989,0.00011898,2]
[346573776,1735107032985,-2443.75,0.00011899,2]
[346573777,1735107032994,-1676.0,0.00011899,2]
[346573778,1735107033003,-500.0,0.00011899,2]
[346573779,1735107033013,-877.32,0.00011899,2]
[346573780,1735107033022,-6083.2,0.00011899,2]
[346573781,1735107033031,-6119.53,0.00011899,2]
[346573782,1735107033040,-3504.3,0.00011899,2]
[346573783,1735107033050,-3249.36,0.00011899,2]
[346573784,1735107033059,-20246.89,0.00011899,2]
[346573785,1735107033069,-4238.52,0.00011899,2]
[346573786,1735107033078,-5957.25,0.00011899,2]
[346573787,1735107033087,-10858.44,0.00011899,2]
[346573788,1735107033096,-4368.33,0.00011899,2]
[346573789,1735107033106,-2879.58,0.00011899,2]
[346573790,1735107033115,-2646.25,0.00011899,2]
[346573791,1735107033124,-8157.08,0.00011899,2]
[346573792,1735107033134,-983.26,0.00011899,2]
[346573793,1735107033143,-920.45,0.00011899,2]
[346573794,1735107033153,-21034.22,0.00011899,2]
[346573795,1735107033164,-2233.49,0.00011899,2]
[346573796,1735107033174,-1006.66,0.00011899,2]
[346573797,1735107033184,-2376.36,0.00011899,2]
[346573798,1735107033193,-642.7,0.00011899,2]
[346573799,1735107033203,-500.0,0.00011899,2]
[346573800,1735107033212,-217.49897725,0.00011899,2]
[346573801,1735107033221,-407.48513014,0.00011899,2]
[346573802,1735107033231,-500.0,0.00011899,2]
[346573803,1735107033242,-500.0,0.00011899,2]
[346573804,1735107033251,-500.0,0.00011899,2]
[346573805,1735107033260,-500.0,0.00011899,2]
[346573806,1735107033270,-500.0,0.00011899,2]
[346573807,1735107033279,-500.0,0.00011899,2]
[346573808,1735107033290,-512.36455401,0.00011899,2]
[346573809,1735107033310,-500.0,0.00011899,2]
[346573810,1735107033325,-500.0,0.00011899,2]
[346573811,1735107033343,-96898.22091074,0.00011899,2]
[346573817,1735107037488,-3876.41,0.00011899,2]
[346573818,1735107037498,-35362.81785092,0.00011899,2]
[346573819,1735107037507,-173.97640415,0.000119,2]
[346573820,1735107037516,-20070.5906227,0.000119,2]
[346573821,1735107037535,-333.37312191,0.00011899,2]
[346573822,1735107037547,-738.68687809,0.00011899,2]
[346573823,1735107037556,-10336.72411455,0.000119,2]
[346573824,1735107037567,-24439.19141542,0.000119,2]
[346573825,1735107037578,-4469.77747567,0.000119,2]
[346573826,1735107037596,-1019.75198005,0.000119,2]
[346573827,1735107037608,-684.3000014,0.000119,2]
[346573828,1735107037738,-297963.43375054,0.000119,2]
[346573829,1735107037750,-13626.47147605,0.000119,2]
[346573830,1735107037762,-40591.51144084,0.000119,2]
[346573831,1735107037773,-8296.4823093,0.000119,2]
[346573832,1735107037830,-28001.76541348,0.000119,2]
[346573833,1735107037840,-373.36175623,0.00011995,2]
[346573834,1735107037852,-1236.08824377,0.00011995,2]
[346573835,1735107037862,-820.45,0.00011995,2]
[346573836,1735107037873,-2708.36,0.00011995,2]
[346573837,1735107037882,-16507.42,0.00011995,2]
[346573838,1735107037892,-101.85844902,0.00011995,2]
[346573839,1735107037904,-294.713,0.00011995,2]
[346573845,1735107039544,-502.20443773,0.00011899,2]
[346573846,1735107039554,-103.42855098,0.00011995,2]
[346573847,1735107039564,-1181.92506291,0.00011995,2]
[346573848,1735107039652,-326.92299996,0.00011995,2]
[346573849,1735107039666,-67.70193713,0.00011995,2]
[346573850,1735107039676,-232.42306286,0.00011995,2]
[346573851,1735107039687,-568.5368175,0.00011995,2]
[346573852,1735107039698,-604.27660424,0.00011995,2]
[346573853,1735107039768,-802.66496489,0.00011995,2]
[346573854,1735107039780,-632.27300002,0.00011995,2]
[346573855,1735107039791,-209.83555049,0.00011995,2]
[346573856,1735107039801,-215.32268431,0.00011995,2]
[346573857,1735107039812,-1189.66987728,0.00011995,2]
[346573858,1735107039834,-1819.23381259,0.00011995,2]
[346573859,1735107039850,-722.19529931,0.00011995,2]
[346573860,1735107039917,-660.11832651,0.00011995,2]
[346573861,1735107039927,-154.497221,0.00011995,2]
[346573862,1735107039938,-156.144595,0.00011995,2]
[346573863,1735107039947,-2198.61506987,0.00011995,2]
[346573864,1735107039959,-892.42310113,0.00011995,2]
[346573865,1735107039969,-3896.17,0.00011995,2]
[346573866,1735107039978,-3138.059613,0.00011995,2]
[346573867,1735107039988,-1923.8240968,0.00011995,2]
[346573868,1735107039999,-134.4659032,0.00011995,2]
[346573869,1735107040008,-7256.41,0.00011995,2]
[346573870,1735107040018,-1884.88,0.00011995,2]
[346573871,1735107040028,-3429.69,0.00011995,2]
[346573872,1735107040038,-4045.31,0.00011995,2]
[346573873,1735107040047,-6319.19,0.00011995,2]
[346573874,1735107040056,-21751.72,0.00011995,2]
[346573875,1735107040066,-500.0,0.00011995,2]
[346573876,1735107040076,-2055.19,0.00011995,2]
[346573877,1735107040085,-25047.25,0.00011995,2]
[346573878,1735107040095,-3883.47,0.00011995,2]
[346573879,1735107040105,-2289.6,0.00011995,2]
[346573880,1735107040116,-4662.95,0.00011995,2]
[346573881,1735107040126,-3162.97,0.00011995,2]
[346573882,1735107040136,-8351.75,0.00011995,2]
[346573883,1735107040146,-6894.42,0.00011995,2]
[346573884,1735107040156,-4329.81,0.00011995,2]
[346573887,1735107040167,-21183.09,0.00011995,2]
[346573888,1735107040177,-14624.95,0.00011995,2]
[346573889,1735107040186,-9820.23230352,0.00011995,2]
[346573890,1735107040218,-2240.91721747,0.00011995,2]
[346573893,1735107042545,-365.06,0.00010137,2]
[346573894,1735107042555,-377.60740349,0.00011899,2]
[346573895,1735107042566,-269.72259651,0.00011899,2]
[346573896,1735107042575,-2595.51,0.00011899,2]
[346573897,1735107042585,-192.22047901,0.00011995,2]
[346573898,1735107042593,-1983.67,0.00011995,2]
[346573899,1735107042602,-2295.06064001,0.00011995,2]
[346573900,1735107042620,-930.16104195,0.00011995,2]
[346573901,1735107042636,-1003.26831804,0.00011995,2]
[346573902,1735107042646,-6628.55,0.00011995,2]
[346573903,1735107042655,-13901.45638688,0.00011995,2]
[346573904,1735107042666,-10377.31968114,0.00011995,2]
[346573905,1735107042677,-2695.74136285,0.00011995,2]
[346573906,1735107042689,-3427.16215668,0.00011995,2]
[346573907,1735107042725,-177.69041245,0.00011995,2]
[346573908,1735107042735,-524.19,0.00011996,2]
[346573909,1735107042745,-500.0,0.00011996,2]
[346573910,1735107042754,-267.80364285,0.00011996,2]
[346573911,1735107042769,-663.13047634,0.00011996,2]
[346573912,1735107042781,-118.20588081,0.00011996,2]
[346573913,1735107042790,-500.0,0.00011996,2]
[346573914,1735107042799,-500.0,0.00011996,2]
[346573915,1735107042808,-500.0,0.00011996,2]
[346573916,1735107042818,-790.48,0.00011996,2]
[346573917,1735107042827,-537.77,0.00011996,2]
[346573918,1735107042837,-581.85,0.00011996,2]
[346573919,1735107042846,-502.40348494,0.00011996,2]
[346573920,1735107042855,-846.63,0.00011996,2]
[346573921,1735107042865,-1779.59,0.00011996,2]
[346573922,1735107042874,-198.97130652,0.00011996,2]
[346573923,1735107042886,-868.12869348,0.00011996,2]
[346573925,1735107042896,-597.39,0.00011996,2]
[346573927,1735107042905,-500.0,0.00011996,2]
[346573928,1735107042915,-500.0,0.00011996,2]
[346573929,1735107042924,-584.60509992,0.00011996,2]
[346573930,1735107042934,-500.0,0.00011996,2]
[346573931,1735107042944,-500.0,0.00011996,2]
[346573932,1735107042954,-1146.29,0.00011996,2]
[346573933,1735107042964,-500.0,0.00011996,2]
[346573934,1735107042974,-500.0,0.00011996,2]
[346573935,1735107042983,-775.07188997,0.00011996,2]
[346573936,1735107043000,-1132.58449139,0.00011996,2]
[346573937,1735107043016,-583.09803399,0.00011996,2]
[346573938,1735107043038,-347.15558465,0.00011996,2]
[346573939,1735107043047,-500.0,0.00011996,2]
[346573940,1735107043057,-164.37265511,0.00011996,2]
[346573941,1735107043066,-500.0,0.00011996,2]
[346573942,1735107043075,-760.82,0.00011996,2]
[346573943,1735107043084,-500.0,0.00011996,2]
[346573944,1735107043093,-1603.2,0.00011996,2]
[346573945,1735107043103,-793.63,0.00011996,2]
[346573946,1735107043112,-73.57116945,0.00011996,2]
[346573947,1735107043162,-426.42883055,0.00011996,2]
[346573948,1735107043175,-500.0,0.00011996,2]
[346573949,1735107043184,-500.0,0.00011996,2]
[346573950,1735107043194,-154.18378081,0.00011996,2]
[346573962,1735107046264,-500.0,0.00011899,2]
[346573963,1735107046274,-1542.39,0.00011899,2]
[346573964,1735107046284,-1851.40621919,0.00011996,2]
[346573965,1735107046293,-971.83,0.00011996,2]
[346573966,1735107046302,-502.09858912,0.00011996,2]
[346573967,1735107046311,-500.0,0.00011996,2]
[346573968,1735107046321,-1288.57,0.00011996,2]
[346573969,1735107046330,-500.0,0.00011996,2]
[346573970,1735107046339,-500.0,0.00011996,2]
[346573971,1735107046348,-434.09059479,0.00011996,2]
[346573972,1735107046357,-1053.32,0.00011996,2]
[346573973,1735107046366,-797.62,0.00011996,2]
[346573974,1735107046376,-1035.57,0.00011996,2]
[346573975,1735107046385,-549.06,0.00011996,2]
[346573976,1735107046394,-500.0,0.00011996,2]
[346573977,1735107046404,-993.15,0.00011996,2]
[346573978,1735107046413,-398.41136857,0.00011996,2]
[346573979,1735107046425,-396.13863143,0.00011996,2]
[346573980,1735107046434,-67.35733542,0.00011996,2]
[346573981,1735107046445,-324.95834368,0.00011996,2]
[346573982,1735107046457,-107.6843209,0.00011996,2]
[346573983,1735107046466,-626.17,0.00011996,2]
[346573984,1735107046475,-37.63787513,0.00011996,2]
[346573985,1735107046517,-462.36212487,0.00011996,2]
[346573986,1735107046526,-500.0,0.00011996,2]
[346573987,1735107046536,-340.81480706,0.00011996,2]
[346573988,1735107046547,-704.07519294,0.00011996,2]
[346573989,1735107046556,-500.0,0.00011996,2]
[346573990,1735107046566,-1368.53,0.00011996,2]
[346573991,1735107046575,-500.0,0.00011996,2]
[346573992,1735107046584,-500.0,0.00011996,2]
[346573993,1735107046594,-743.15,0.00011996,2]
[346573994,1735107046603,-552.65,0.00011996,2]
[346573995,1735107046611,-193.29043091,0.00011996,2]
[346573996,1735107046620,-1591.93,0.00011996,2]
[346573997,1735107046628,-500.0,0.00011996,2]
[346573998,1735107046637,-89.33121705,0.00011996,2]
[346573999,1735107046648,-410.66878295,0.00011996,2]
[346574000,1735107046657,-836.49,0.00011996,2]
[346574001,1735107046666,-554.42,0.00011996,2]
[346574002,1735107046676,-436.69597783,0.00011996,2]
[346574003,1735107046688,-1335.67402217,0.00011996,2]
[346574004,1735107046697,-500.0,0.00011996,2]
[346574005,1735107046706,-476.74645783,0.00011996,2]
[346574006,1735107046717,-23.25354217,0.00011996,2]
[346574007,1735107046726,-719.43,0.00011996,2]
[346574008,1735107046735,-500.0,0.00011996,2]
[346574009,1735107046744,-500.0,0.00011996,2]
[346574010,1735107046753,-500.0,0.00011996,2]
[346574011,1735107046762,-500.0,0.00011996,2]
[346574012,1735107046771,-500.0,0.00011996,2]
[346574013,1735107046780,-263.13253394,0.00011996,2]
[346574014,1735107046802,-517.42094337,0.00011996,2]
[346574015,1735107047012,-1449.07818022,0.00011996,2]
[346574016,1735107047024,-33.00834247,0.00011996,2]
[346574017,1735107047034,-500.0,0.00011996,2]
[346574018,1735107047044,-500.0,0.00011996,2]
[346574019,1735107047054,-553.61667553,0.00011996,2]
[346574020,1735107047063,-500.0,0.00011996,2]
[346574021,1735107047072,-500.0,0.00011996,2]
[346574022,1735107047082,-552.53,0.00011996,2]
[346574023,1735107047091,-500.0,0.00011996,2]
[346574024,1735107047099,-500.0,0.00011996,2]
[346574025,1735107047108,-567.09,0.00011996,2]
[346574026,1735107047117,-500.0,0.00011996,2]
[346574027,1735107047127,-500.0,0.00011996,2]
[346574028,1735107047137,-592.33035766,0.00011996,2]
[346574029,1735107047147,-500.0,0.00011996,2]
[346574030,1735107047157,-1756.66,0.00011996,2]
[346574031,1735107047170,-500.0,0.00011996,2]
[346574032,1735107047180,-692.89,0.00011996,2]
[346574033,1735107047189,-500.0,0.00011996,2]
[346574034,1735107047200,-950.28,0.00011996,2]
[346574035,1735107047210,-603.27,0.00011996,2]
[346574036,1735107047219,-500.0,0.00011996,2]
[346574037,1735107047229,-586.94,0.00011996,2]
[346574038,1735107047238,-663.49,0.00011996,2]
[346574039,1735107047248,-500.0,0.00011996,2]
[346574040,1735107047257,-500.0,0.00011996,2]
[346574041,1735107047266,-552.23,0.00011996,2]
[346574042,1735107047275,-500.0,0.00011996,2]
[346574043,1735107047285,-507.88145881,0.00011996,2]
[346574044,1735107047294,-500.0,0.00011996,2]
[346574045,1735107047303,-500.0,0.00011996,2]
[346574046,1735107047312,-500.0,0.00011996,2]
[346574047,1735107047321,-500.0,0.00011996,2]
[346574048,1735107047331,-500.0,0.00011996,2]
[346574049,1735107047340,-500.0,0.00011996,2]
[346574050,1735107047349,-593.78,0.00011996,2]
[346574051,1735107047358,-500.0,0.00011996,2]
[346574052,1735107047368,-500.0,0.00011996,2]
[346574053,1735107047377,-1843.41,0.00011996,2]
[346574054,1735107047386,-617.62,0.00011996,2]
[346574055,1735107047395,-500.0,0.00011996,2]
[346574056,1735107047406,-500.0,0.00011996,2]
[346574057,1735107047416,-971.71,0.00011996,2]
[346574058,1735107047425,-500.0,0.00011996,2]
[346574059,1735107047435,-552.22,0.00011996,2]
[346574060,1735107047445,-500.0,0.00011996,2]
[346574061,1735107047455,-580.47,0.00011996,2]
[346574062,1735107047465,-636.2,0.00011996,2]
[346574063,1735107047474,-500.0,0.00011996,2]
[346574064,1735107047483,-535.24,0.00011996,2]
[346574065,1735107047493,-813.25,0.00011996,2]
[346574066,1735107047501,-1197.85,0.00011996,2]
[346574067,1735107047511,-500.0,0.00011996,2]
[346574068,1735107047520,-1141.56,0.00011996,2]
[346574069,1735107047529,-500.0,0.00011996,2]